fUSD/lending_fUSD_20240902
["ID","MTS","AMOUNT","RATE_DAILY","PERIOD"]
[336960212,1725264654955,-500.0,0.00019178,2]
[336960214,1725264654965,-500.0,0.00019178,2]
[336960216,1725264654975,-500.0,0.00019178,2]
[336960218,1725264654984,-500.0,0.00019178,2]
[336960220,1725264654995,-500.0,0.00019178,2]
[336960222,1725264655005,-580.27294242,0.00019178,2]
[336960224,1725264655014,-500.0,0.00019178,2]
[336960226,1725264655023,-500.0,0.00019178,2]
[336960228,1725264655034,-605.6,0.00019178,2]
[336960230,1725264655043,-500.0,0.00019178,2]
[336960232,1725264655052,-500.0,0.00019178,2]
[336960234,1725264655061,-500.0,0.00019178,2]
[336960236,1725264655071,-500.0,0.00019178,2]
[336960238,1725264655080,-500.0,0.00019178,2]
[336960240,1725264655089,-500.0,0.00019178,2]
[336960242,1725264655099,-500.0,0.00019178,2]
[336960244,1725264655108,-500.0,0.00019178,2]
[336960246,1725264655118,-500.0,0.00019178,2]
[336960248,1725264655127,-610.24734325,0.00019178,2]
[336960250,1725264655136,-500.0,0.00019178,2]
[336960252,1725264655147,-500.0,0.00019178,2]
[336960254,1725264655156,-500.0,0.00019178,2]
[336960255,1725264655166,-500.0,0.00019178,2]
[336960257,1725264655175,-500.0,0.00019178,2]
[336960258,1725264655184,-500.0,0.00019178,2]
[336960260,1725264655193,-500.0,0.00019178,2]
[336960262,1725264655202,-500.0,0.00019178,2]
[336960264,1725264655212,-500.0,0.00019178,2]
[336960266,1725264655221,-594.36,0.00019178,2]
[336960268,1725264655230,-254.2138687,0.00019178,2]
[336960270,1725264655239,-594.36,0.00019178,2]
[336960272,1725264655249,-594.36,0.00019178,2]
[336960274,1725264655258,-500.0,0.00019178,2]
[336960276,1725264655268,-594.36,0.00019178,2]
[336960278,1725264655277,-500.0,0.00019178,2]
[336960280,1725264655287,-594.36,0.00019178,2]
[336960282,1725264655296,-500.0,0.00019178,2]
[336960284,1725264655307,-594.36,0.00019178,2]
[336960286,1725264655317,-500.0,0.00019178,2]
[336960288,1725264655328,-594.36,0.00019178,2]
[336960290,1725264655338,-500.0,0.00019178,2]
[336960292,1725264655349,-594.36,0.00019178,2]
[336960294,1725264655359,-500.0,0.00019178,2]
[336960297,1725264655371,-594.36,0.00019178,2]
[336960299,1725264655380,-500.0,0.00019178,2]
[336960300,1725264655390,-594.36,0.00019178,2]
[336960303,1725264655401,-500.0,0.00019178,2]
[336960304,1725264655410,-594.36,0.00019178,2]
[336960307,1725264655420,-594.36,0.00019178,2]
[336960309,1725264655430,-500.0,0.00019178,2]
[336960311,1725264655440,-594.36,0.00019178,2]
[336960312,1725264655450,-500.0,0.00019178,2]
[336960314,1725264655459,-594.36,0.00019178,2]
[336960316,1725264655469,-500.0,0.00019178,2]
[336960318,1725264655479,-594.36,0.00019178,2]
[336960320,1725264655488,-500.0,0.00019178,2]
[336960322,1725264655497,-594.36,0.00019178,2]
[336960324,1725264655506,-594.36,0.00019178,2]
[336960326,1725264655516,-500.0,0.00019178,2]
[336960328,1725264655525,-594.36,0.00019178,2]
[336960330,1725264655536,-500.0,0.00019178,2]
[336960332,1725264655545,-594.36,0.00019178,2]
[336960334,1725264655555,-500.0,0.00019178,2]
[336960336,1725264655565,-594.36,0.00019178,2]
[336960338,1725264655575,-594.36,0.00019178,2]
[336960340,1725264655585,-500.0,0.00019178,2]
[336960342,1725264655596,-594.36,0.00019178,2]
[336960344,1725264655605,-500.0,0.00019178,2]
[336960346,1725264655616,-594.36,0.00019178,2]
[336960348,1725264655625,-500.0,0.00019178,2]
[336960350,1725264655635,-199.79045882,0.00019178,2]
[336960352,1725264655645,-594.37916977,0.00019178,2]
[336960354,1725264655655,-211.74324618,0.00019178,2]
[336960356,1725264655664,-635.67,0.00019178,2]
[336960358,1725264655674,-635.67,0.00019178,2]
[336960360,1725264655685,-635.67,0.00019178,2]
[336960362,1725264655694,-635.67,0.00019178,2]
[336960363,1725264655703,-635.67,0.00019178,2]
[336960364,1725264655714,-635.67,0.00019178,2]
[336960365,1725264655724,-635.67,0.00019178,2]
[336960366,1725264655734,-635.67,0.00019178,2]
[336960367,1725264655744,-635.67,0.00019178,2]
[336960368,1725264655753,-635.67,0.00019178,2]
[336960369,1725264655763,-635.67,0.00019178,2]
[336960370,1725264655774,-635.67,0.00019178,2]
[336960371,1725264655784,-635.67,0.00019178,2]
[336960372,1725264655797,-635.67,0.00019178,2]
[336960373,1725264655809,-635.67,0.00019178,2]
[336960374,1725264655819,-635.67,0.00019178,2]
[336960375,1725264655831,-635.67,0.00019178,2]
[336960376,1725264655842,-500.0,0.00019178,2]
[336960377,1725264655853,-635.67,0.00019178,2]
[336960378,1725264655862,-500.0,0.00019178,2]
[336960379,1725264655873,-635.67,0.00019178,2]
[336960380,1725264655885,-500.0,0.00019178,2]
[336960381,1725264655894,-635.67,0.00019178,2]
[336960382,1725264655904,-500.0,0.00019178,2]
[336960383,1725264655915,-635.67,0.00019178,2]
[336960384,1725264655926,-500.0,0.00019178,2]
[336960385,1725264655935,-635.67,0.00019178,2]
[336960386,1725264655947,-500.0,0.00019178,2]
[336960387,1725264655959,-635.67,0.00019178,2]
[336960388,1725264655969,-500.0,0.00019178,2]
[336960389,1725264655979,-635.9007468,0.00019178,2]
[336960390,1725264655989,-500.0,0.00019178,2]
[336960391,1725264655998,-500.0,0.00019178,2]
[336960392,1725264656007,-500.0,0.00019178,2]
[336960397,1725264656082,-500.0,0.00019178,2]
[336960399,1725264656091,-658.74,0.00019178,2]
[336960401,1725264656100,-500.0,0.00019178,2]
[336960403,1725264656110,-658.74,0.00019178,2]
[336960405,1725264656119,-500.0,0.00019178,2]
[336960407,1725264656128,-658.74,0.00019178,2]
[336960409,1725264656138,-500.0,0.00019178,2]
[336960411,1725264656147,-658.74,0.00019178,2]
[336960413,1725264656157,-500.0,0.00019178,2]
[336960415,1725264656166,-658.74,0.00019178,2]
[336960417,1725264656176,-500.0,0.00019178,2]
[336960419,1725264656185,-658.74,0.00019178,2]
[336960421,1725264656194,-500.0,0.00019178,2]
[336960423,1725264656203,-725.23,0.00019178,2]
[336960425,1725264656212,-658.74,0.00019178,2]
[336960427,1725264656221,-500.0,0.00019178,2]
[336960429,1725264656231,-725.23,0.00019178,2]
[336960431,1725264656240,-151.0,0.00019178,2]
[336960432,1725264656250,-658.74,0.00019178,2]
[336960435,1725264656259,-500.0,0.00019178,2]
[336960437,1725264656269,-725.23,0.00019178,2]
[336960438,1725264656278,-151.0,0.00019178,2]
[336960441,1725264656288,-658.74,0.00019178,2]
[336960442,1725264656297,-500.0,0.00019178,2]
[336960444,1725264656307,-725.23,0.00019178,2]
[336960446,1725264656316,-658.74,0.00019178,2]
[336960448,1725264656325,-151.0,0.00019178,2]
[336960450,1725264656335,-500.0,0.00019178,2]
[336960451,1725264656344,-658.74,0.00019178,2]
[336960452,1725264656354,-725.23,0.00019178,2]
[336960453,1725264656363,-500.0,0.00019178,2]
[336960454,1725264656373,-725.23,0.00019178,2]
[336960455,1725264656382,-500.0,0.00019178,2]
[336960456,1725264656392,-658.74,0.00019178,2]
[336960457,1725264656401,-725.23,0.00019178,2]
[336960458,1725264656411,-658.74,0.00019178,2]
[336960459,1725264656420,-155.126797,0.00019178,2]
[336960460,1725264656430,-393.70604956,0.00019178,2]
[336960461,1725264656439,-725.23,0.00019178,2]
[336960462,1725264656449,-658.74,0.00019178,2]
[336960463,1725264656458,-658.74,0.00019178,2]
[336960464,1725264656468,-725.23,0.00019178,2]
[336960465,1725264656477,-658.74,0.00019178,2]
[336960466,1725264656487,-725.23,0.00019178,2]
[336960468,1725264656497,-658.74,0.00019178,2]
[336960470,1725264656506,-725.23,0.00019178,2]
[336960472,1725264656515,-725.23,0.00019178,2]
[336960474,1725264656526,-658.74,0.00019178,2]
[336960476,1725264656537,-725.23,0.00019178,2]
[336960478,1725264656546,-658.74,0.00019178,2]
[336960480,1725264656555,-725.23,0.00019178,2]
[336960481,1725264656565,-658.74,0.00019178,2]
[336960483,1725264656574,-725.23,0.00019178,2]
[336960485,1725264656584,-725.23,0.00019178,2]
[336960487,1725264656593,-658.74,0.00019178,2]
[336960489,1725264656602,-725.23,0.00019178,2]
[336960491,1725264656611,-658.74,0.00019178,2]
[336960493,1725264656621,-725.23,0.00019178,2]
[336960495,1725264656631,-658.74,0.00019178,2]
[336960497,1725264656641,-658.88598402,0.00019178,2]
[336960499,1725264656650,-725.23,0.00019178,2]
[336960501,1725264656659,-725.23,0.00019178,2]
[336960503,1725264656669,-725.23,0.00019178,2]
[336960505,1725264656680,-725.23,0.00019178,2]
[336960508,1725264656690,-725.23,0.00019178,2]
[336960509,1725264656700,-500.0,0.00019178,2]
[336960512,1725264656711,-725.402356,0.00019178,2]
[336960514,1725264656720,-500.0,0.00019178,2]
[336960516,1725264656731,-500.0,0.00019178,2]
[336960518,1725264656740,-500.0,0.00019178,2]
[336960520,1725264656750,-500.0,0.00019178,2]
[336960522,1725264656761,-500.0,0.00019178,2]
[336960524,1725264656771,-500.0,0.00019178,2]
[336960526,1725264656782,-500.0,0.00019178,2]
[336960528,1725264656791,-500.0,0.00019178,2]
[336960530,1725264656802,-500.0,0.00019178,2]
[336960532,1725264656810,-500.0,0.00019178,2]
[336960534,1725264656821,-500.0,0.00019178,2]
[336960536,1725264656830,-500.0,0.00019178,2]
[336960538,1725264656839,-472.25587474,0.00019178,2]
[336960539,1725264656849,-500.0,0.00019178,2]
[336960541,1725264656858,-500.0,0.00019178,2]
[336960543,1725264656868,-500.0,0.00019178,2]
[336960545,1725264656879,-500.0,0.00019178,2]
[336960547,1725264656889,-500.0,0.00019178,2]
[336960549,1725264656899,-500.0,0.00019178,2]
[336960551,1725264656909,-500.0,0.00019178,2]
[336960553,1725264656920,-500.0,0.00019178,2]
[336960555,1725264656931,-500.0,0.00019178,2]
[336960557,1725264656943,-500.0,0.00019178,2]
[336960559,1725264656953,-500.0,0.00019178,2]
[336960562,1725264656964,-500.0,0.00019178,2]
[336960564,1725264656974,-500.0,0.00019178,2]
[336960566,1725264656984,-500.0,0.00019178,2]
[336960568,1725264656994,-500.0,0.00019178,2]
[336960570,1725264657004,-500.0,0.00019178,2]
[336960572,1725264657013,-500.0,0.00019178,2]
[336960574,1725264657023,-500.0,0.00019178,2]
[336960576,1725264657039,-500.0,0.00019178,2]
[336960578,1725264657049,-500.0,0.00019178,2]
[336960580,1725264657058,-500.0,0.00019178,2]
[336960582,1725264657068,-500.0,0.00019178,2]
[336960584,1725264657077,-500.0,0.00019178,2]
[336960586,1725264657088,-500.0,0.00019178,2]
[336960588,1725264657097,-500.0,0.00019178,2]
[336960590,1725264657107,-500.0,0.00019178,2]
[336960592,1725264657116,-500.0,0.00019178,2]
[336960594,1725264657125,-500.0,0.00019178,2]
[336960596,1725264657134,-500.0,0.00019178,2]
[336960598,1725264657144,-476.31294882,0.00019178,2]
[336960702,1725264923298,150.0,0.00010959,2]
[336960703,1725264923321,2.2,0.00010959,2]
[336960705,1725264995916,147.8,0.00011,2]
[336960706,1725264995947,402.2,0.00011,2]
[336960707,1725265132964,275.69,0.00025626,120]
[336960708,1725265149100,414.26336429,0.00011087,2]
[336960709,1725265149433,414.26336429,0.00011414,2]
[336960710,1725265149758,414.26336429,0.00011638,2]
[336960711,1725265150070,414.26336429,0.00011877,2]
[336960713,1725265452724,156.17,0.00010959,2]
[336960714,1725265508983,1964.99501647,0.0001099,2]
[336960718,1725265534974,150.02046626,0.0001,2]
[336960719,1725265536778,461.79468298,9.5e-05,2]
[336960720,1725265551933,4047.47107545,0.00010988,2]
[336960721,1725265551965,745.34763787,0.00010988,2]
[336960722,1725265552005,4163.76599865,0.00010988,2]
[336960723,1725265552035,3019.83050521,0.00010988,2]
[336960724,1725265552063,3339.54838812,0.00010988,2]
[336960725,1725265552093,295.23215543,0.00010988,2]
[336960726,1725265552123,4358.25337613,0.00010988,2]
[336960727,1725265552150,2867.1568169,0.00010988,2]
[336960728,1725265552180,4920.61721216,0.00010988,2]
[336960729,1725265552208,4364.87117694,0.00010988,2]
[336960730,1725265552243,5730.4184269,0.00010988,2]
[336960731,1725265552705,-150.0,0.00010988,2]
[336960732,1725265553312,-150.0,0.00010988,2]
[336960733,1725265553765,-150.0,0.00010988,2]
[336960734,1725265554254,-150.0,0.00010988,2]
[336960735,1725265554768,-150.0,0.00010988,2]
[336960739,1725265639347,-3794.05803289,0.00010988,2]
[336960740,1725265645099,150.0,0.000101,2]
[336960741,1725265645119,95.37540866,0.000101,2]
[336960742,1725265646749,-200.26750943,0.00011737,2]
[336960746,1725265710577,1053.8947,0.00010888,2]
[336960748,1725265743340,-414.2633643,0.00011119,2]
[336960749,1725265743367,-43.26951404,0.00011494,2]
[336960772,1725265832262,-150.0,0.00011494,2]
[336960774,1725265832271,-150.0,0.00011494,2]
[336960775,1725265832280,-150.0,0.00011494,2]
[336960776,1725265832290,-150.0,0.00011494,2]
[336960777,1725265832299,-154.50826206,0.00011494,2]
[336960778,1725265832308,-600.0,0.00013,2]
[336960779,1725265832318,-2345.15,0.00013312,2]
[336960780,1725265832327,-282.91,0.00013618,2]
[336960781,1725265832336,-150.44,0.00013699,2]
[336960782,1725265832345,-160.687354,0.00014005,2]
[336960783,1725265832354,-412.9521669,0.00014215,2]
[336960784,1725265832363,-412.9521669,0.00014513,2]
[336960785,1725265832379,-412.9521669,0.00014691,2]
[336960786,1725265832388,-408.90788324,0.00014856,2]
[336960787,1725265832400,-4.04428366,0.00014856,2]
[336960788,1725265832410,-282.13763906,0.00014888,2]
[336960789,1725265832421,-630.55236094,0.00014888,2]
[336960790,1725265832431,-300.0,0.00014889,2]
[336960791,1725265832440,-42152.76357282,0.0001489,7]
[336960792,1725265832469,-902.65456584,0.0001489,7]
[336960803,1725265838462,-3704.1009641,0.0001489,7]
[336960804,1725265838472,-650.0,0.00015,2]
[336960805,1725265838481,-150.0,0.00015143,2]
[336960806,1725265838490,-2751.0,0.00015144,2]
[336960807,1725265838500,-412.9521669,0.0001526,2]
[336960808,1725265838509,-250.0,0.00015342,2]
[336960809,1725265838518,-179.44,0.00015428,2]
[336960810,1725265838527,-157.6,0.00015527,2]
[336960811,1725265838537,-412.9521669,0.00015604,2]
[336960812,1725265838545,-815.86722504,0.00015687,2]
[336960814,1725265838691,-0.28397956,0.00015687,2]
[336960816,1725265838715,-10536.0987954,0.00015687,2]
[336960817,1725265838724,-412.9521669,0.00015854,2]
[336960818,1725265838734,-282.91,0.00015882,2]
[336960819,1725265838744,-412.9521669,0.00015968,2]
[336960820,1725265838753,-200.0,0.00016,6]
[336960821,1725265838763,-412.9521669,0.00016267,2]
[336960822,1725265838772,-420.0,0.00016297,2]
[336960823,1725265838781,-412.9521669,0.00016466,2]
[336960824,1725265838791,-167.29,0.00016479,2]
[336960825,1725265838800,-250.0,0.00016501,2]
[336960826,1725265838810,-951.99,0.00016501,2]
[336960827,1725265838819,-14408.3,0.00016513,2]
[336960828,1725265838829,-200.0,0.00016569,2]
[336960829,1725265838838,-250.0,0.00016637,2]
[336960831,1725265838846,-412.679267,0.00016712,2]
[336960833,1725265838855,-412.9521669,0.00016825,2]
[336960835,1725265838865,-171.87,0.00016869,2]
[336960837,1725265838875,-700.0,0.00017,2]
[336960839,1725265838884,-200.0,0.00017,7]
[336960841,1725265838894,-412.9521669,0.00017048,2]
[336960843,1725265838904,-1000.0,0.00017258,2]
[336960845,1725265838913,-150.0,0.0001726,2]
[336960847,1725265838923,-412.9521669,0.00017348,2]
[336960848,1725265838932,-179.44,0.00017356,2]
[336960850,1725265838942,-166.86,0.00017517,2]
[336960852,1725265838958,-412.679267,0.00017534,2]
[336960854,1725265838968,-150.44,0.00017534,2]
[336960856,1725265838978,-412.9521669,0.00017535,2]
[336960858,1725265838987,-192.71516121,0.00017584,2]
[336960860,1725265838996,-168.793,0.00017596,2]
[336960862,1725265839006,-300.0,0.00017661,2]
[336960864,1725265839016,-191.76,0.0001767,3]
[336960866,1725265839026,-151.79,0.0001767,2]
[336960868,1725265839035,-151.79,0.0001767,2]
[336960870,1725265839044,-575.31,0.0001767,3]
[336960871,1725265839053,-183.67898608,0.00017679,2]
[336960873,1725265839063,-299.75653239,0.00017679,2]
[336960875,1725265839071,-772494.21287867,0.0001768,2]
[336961005,1725265840506,-200.0,0.00012,2]
[336961006,1725265840515,-4905.92119758,0.0001768,2]
[336961009,1725265840526,-1750.8270004,0.0001768,2]
[336961013,1725265840565,-1342.83578649,0.0001768,2]
[336961303,1725265843284,-1098.75051472,0.0001768,2]
[336961304,1725265843296,-14460.26547633,0.0001768,2]
[336961305,1725265843307,-315.53025998,0.0001768,2]
[336961306,1725265843318,-341.04,0.0001768,2]
[336961307,1725265843329,-935.12,0.0001768,2]
[336961308,1725265843342,-12842.43697201,0.0001768,2]
[336961309,1725265843354,-895.78987325,0.0001768,2]
[336961412,1725265844407,-4202.89669979,0.0001768,2]
[336961416,1725265844434,-290336.00546334,0.0001768,2]
[336961418,1725265844443,-358.67621712,0.00017684,2]
[336961420,1725265844454,-644.22384875,0.00017784,2]
[336961422,1725265844463,-587.0,0.00017838,2]
[336961424,1725265844472,-151.79,0.0001799,2]
[336961426,1725265844481,-658.22525118,0.00018,2]
[336961428,1725265844491,-20048.30925326,0.00018,2]
[336961430,1725265844500,-1122.03246565,0.00018,2]
[336961431,1725265844509,-5567.19794028,0.00018,2]
[336961433,1725265844519,-1021.39479067,0.00018,2]
[336961435,1725265844528,-200.0,0.00018,9]
[336961437,1725265844537,-644.22384872,0.00018019,2]
[336961439,1725265844547,-412.9521669,0.00018043,2]
[336961442,1725265844557,-1678.26846686,0.000181,2]
[336961444,1725265844566,-282.91,0.00018146,2]
[336961445,1725265844575,-1000.0,0.00018175,2]
[336961447,1725265844584,-644.22384872,0.00018254,2]
[336961449,1725265844594,-412.9521669,0.00018329,2]
[336961451,1725265844604,-412.679267,0.00018356,2]
[336961453,1725265844613,-152.36,0.00018356,2]
[336961455,1725265844623,-412.9521669,0.00018443,2]
[336961457,1725265844633,-644.22384872,0.00018489,2]
[336961459,1725265844642,-168.793,0.00018566,2]
[336961461,1725265844651,-275.69,0.00018637,2]
[336961463,1725265844660,-644.22384872,0.00018724,2]
[336961465,1725265844670,-412.9521669,0.00018863,2]
[336961467,1725265844679,-644.22384872,0.0001896,2]
[336961469,1725265844688,-656.3577,0.00018978,2]
[336961471,1725265844698,-153.68796,0.00018986,2]
[336961473,1725265844712,-971.47058,0.0001899,2]
[336961475,1725265844723,-750.0,0.00019,2]
[336961477,1725265844738,-196.1214,0.00019,2]
[336961479,1725265844748,-888.51892512,0.00019,2]
[336961481,1725265844758,-200.0,0.00019,10]
[336961483,1725265844767,-300.0,0.00019031,2]
[336961485,1725265844777,-383.52,0.0001904,3]
[336961487,1725265844786,-473.3093,0.00019078,2]
[336961489,1725265844795,-172.70431108,0.00019078,2]
[336961491,1725265844805,-172.99426766,0.00019078,2]
[336961493,1725265844814,-410.46247326,0.00019078,2]
[336961494,1725265844823,-164.67766966,0.00019078,2]
[336961496,1725265844832,-215.4898,0.00019078,2]
[336961498,1725265844842,-10461.4653,0.00019078,2]
[336961500,1725265844851,-261.646,0.00019078,2]
[336961502,1725265844860,-412.9521669,0.00019086,2]
[336961504,1725265844870,-497.0,0.000191,2]
[336961506,1725265844879,-2000.0,0.000191,2]
[336961508,1725265844889,-2000.0,0.0001911,2]
[336961510,1725265844899,-3596.269719,0.0001912,2]
[336961512,1725265844909,-151.79,0.00019168,2]
[336961514,1725265844919,-201.0,0.0001917,4]
[336961516,1725265844928,-500.0,0.00019173,2]
[336961518,1725265844938,-500.0,0.00019173,2]
[336961520,1725265844947,-9542.1586579,0.00019176,2]
[336961522,1725265844963,-232.16444723,0.00019177,2]
[336961524,1725265844972,-417.0342,0.00019177,2]
[336961526,1725265844981,-573.0,0.00019178,2]
[336961528,1725265844991,-485.40573446,0.00019178,2]
[336961530,1725265845000,-135996.97252013,0.00019178,2]
[336961532,1725265845009,-811.71,0.00019178,2]
[336961534,1725265845019,-811.71,0.00019178,2]
[336961536,1725265845028,-811.71,0.00019178,2]
[336961538,1725265845038,-811.71,0.00019178,2]
[336961540,1725265845047,-811.71,0.00019178,2]
[336961542,1725265845057,-811.71,0.00019178,2]
[336961544,1725265845066,-811.71,0.00019178,2]
[336961546,1725265845075,-811.71,0.00019178,2]
[336961548,1725265845085,-811.71,0.00019178,2]
[336961550,1725265845094,-811.71,0.00019178,2]
[336961552,1725265845103,-811.71,0.00019178,2]
[336961554,1725265845113,-811.71,0.00019178,2]
[336961556,1725265845122,-811.71,0.00019178,2]
[336961558,1725265845131,-811.71,0.00019178,2]
[336961560,1725265845140,-811.71,0.00019178,2]
[336961562,1725265845150,-811.71,0.00019178,2]
[336961564,1725265845159,-811.71,0.00019178,2]
[336961566,1725265845172,-811.71,0.00019178,2]
[336961568,1725265845181,-811.71,0.00019178,2]
[336961570,1725265845190,-811.71,0.00019178,2]
[336961572,1725265845200,-811.71,0.00019178,2]
[336961574,1725265845219,-811.71,0.00019178,2]
[336961575,1725265845229,-811.71,0.00019178,2]
[336961577,1725265845239,-811.92810494,0.00019178,2]
[336961579,1725265845250,-500.0,0.00019178,2]
[336961581,1725265845259,-500.0,0.00019178,2]
[336961583,1725265845268,-500.0,0.00019178,2]
[336961585,1725265845277,-500.0,0.00019178,2]
[336961587,1725265845287,-500.0,0.00019178,2]
[336961589,1725265845296,-500.0,0.00019178,2]
[336961591,1725265845305,-500.0,0.00019178,2]
[336961593,1725265845315,-500.0,0.00019178,2]
[336961595,1725265845325,-500.0,0.00019178,2]
[336961597,1725265845335,-500.0,0.00019178,2]
[336961599,1725265845344,-500.0,0.00019178,2]
[336961601,1725265845354,-500.0,0.00019178,2]
[336961603,1725265845363,-500.0,0.00019178,2]
[336961605,1725265845373,-197.00231913,0.00019178,2]
[336961607,1725265845382,-500.0,0.00019178,2]
[336961609,1725265845392,-500.0,0.00019178,2]
[336961611,1725265845401,-500.0,0.00019178,2]
[336961613,1725265845410,-500.0,0.00019178,2]
[336961615,1725265845420,-500.0,0.00019178,2]
[336961617,1725265845429,-500.0,0.00019178,2]
[336961619,1725265845438,-500.0,0.00019178,2]
[336961621,1725265845449,-500.0,0.00019178,2]
[336961623,1725265845462,-500.0,0.00019178,2]
[336961625,1725265845471,-500.0,0.00019178,2]
[336961627,1725265845481,-500.0,0.00019178,2]
[336961629,1725265845489,-500.0,0.00019178,2]
[336961631,1725265845499,-500.0,0.00019178,2]
[336961633,1725265845508,-500.0,0.00019178,2]
[336961636,1725265845517,-500.0,0.00019178,2]
[336961637,1725265845527,-500.0,0.00019178,2]
[336961639,1725265845536,-500.0,0.00019178,2]
[336961641,1725265845545,-500.0,0.00019178,2]
[336961643,1725265845555,-328.79528327,0.00019178,2]
[336961645,1725265845564,-500.0,0.00019178,2]
[336961647,1725265845573,-500.0,0.00019178,2]
[336961649,1725265845582,-500.0,0.00019178,2]
[336961651,1725265845591,-500.0,0.00019178,2]
[336961653,1725265845601,-500.0,0.00019178,2]
[336961655,1725265845610,-500.0,0.00019178,2]
[336961657,1725265845619,-500.0,0.00019178,2]
[336961659,1725265845630,-500.0,0.00019178,2]
[336961661,1725265845638,-500.0,0.00019178,2]
[336961663,1725265845647,-585.37900417,0.00019178,2]
[336961665,1725265845657,-500.0,0.00019178,2]
[336961667,1725265845666,-500.0,0.00019178,2]
[336961669,1725265845674,-500.0,0.00019178,2]
[336961671,1725265845684,-2000.0,0.00019178,2]
[336961673,1725265845693,-500.0,0.00019178,2]
[336961675,1725265845706,-193.71852315,0.00019178,2]
[336961677,1725265845715,-500.0,0.00019178,2]
[336961679,1725265845724,-500.0,0.00019178,2]
[336961681,1725265845734,-500.0,0.00019178,2]
[336961683,1725265845743,-200.0,0.00019178,2]
[336961684,1725265845752,-500.0,0.00019178,2]
[336961685,1725265845762,-500.0,0.00019178,2]
[336961686,1725265845771,-500.0,0.00019178,2]
[336961687,1725265845780,-500.0,0.00019178,2]
[336961688,1725265845790,-500.0,0.00019178,2]
[336961689,1725265845799,-225.40076896,0.00019178,2]
[336961690,1725265845808,-864.67,0.00019178,2]
[336961691,1725265845818,-864.67,0.00019178,2]
[336961692,1725265845828,-864.67,0.00019178,2]
[336961693,1725265845837,-864.67,0.00019178,2]
[336961694,1725265845847,-754.55,0.00019178,2]
[336961695,1725265845856,-864.67,0.00019178,2]
[336961696,1725265845866,-754.55,0.00019178,2]
[336961697,1725265845875,-864.67,0.00019178,2]
[336961698,1725265845885,-864.67,0.00019178,2]
[336961699,1725265845895,-754.55,0.00019178,2]
[336961700,1725265845905,-864.67,0.00019178,2]
[336961701,1725265845915,-754.55,0.00019178,2]
[336961702,1725265845924,-864.67,0.00019178,2]
[336961703,1725265845934,-754.55,0.00019178,2]
[336961704,1725265845944,-864.67,0.00019178,2]
[336961705,1725265845959,-754.55,0.00019178,2]
[336961706,1725265845971,-864.67,0.00019178,2]
[336961707,1725265845980,-754.55,0.00019178,2]
[336961708,1725265845990,-864.67,0.00019178,2]
[336961709,1725265845999,-754.55,0.00019178,2]
[336961710,1725265846009,-754.55,0.00019178,2]
[336961711,1725265846019,-864.67,0.00019178,2]
[336961712,1725265846029,-754.55,0.00019178,2]
[336961713,1725265846039,-864.67,0.00019178,2]